[Event "Polish University-ch Open 2024"]
[Site "Lublin"]
[Date "2024.02.23"]
[Round "4.15"]
[White "Molenda, Marcin"]
[Black "Golda, Sebastian"]
[Result "1-0"]
[ECO "E10"]
[WhiteElo "2377"]
[BlackElo "2107"]
[Annotator "TA"]
[PlyCount "91"]
[EventDate "2024.02.22"]
[EventType "swiss"]
[EventCountry "POL"]
[SourceTitle "playchess.com"]
[Source "ChessBase"]
[SourceQuality "1"]
[TimeControl "600+3"]

{[%evp 14,91,27,43,29,39,35,17,15,2,41,45,39,35,54,53,50,54,41,23,17,18,14,18,22,11,8,0,12,0,0,-8,0,-16,0,0,0,8,51,53,41,39,47,0,123,82,63,66,206,195,358,308,543,466,466,452,429,429,584,433,443,392,437,419,377,113,232,232,216,170,588,573,821,600,4139,4140,4132,4132,906,827]} 1. d4 {[%emt 0:00:01]} Nf6 {[%emt 0:05:28]} 2. c4 {[%emt 0:00:03]} Nc6 {[%emt 0:00:01]} 3. Nf3 {[%emt 0:00:49]} e6 {[%emt 0:00:01]} 4. a3 {[%emt 0:00:02]} d6 {[%emt 0:00:05]} 5. Nc3 {[%emt 0:00:08]} g6 {[%emt 0:00:01]} 6. e4 {[%emt 0:00:08]} Bg7 {[%emt 0:00:01]} 7. Be2 {[%emt 0:00:03]} O-O {[%emt 0:00:02]} 8. O-O {[%emt 0:00:02]} Re8 {[%emt 0:00:03]} 9. Be3 {[%emt 0:00:47]} e5 {[%emt 0:00:01]} 10. d5 {[%emt 0:00:02]} Nd4 {[%emt 0:00:01] The position is equal.} 11. h3 {[%emt 0:01:16]} c5 {[%emt 0:00:17]} 12. dxc6 {[%emt 0:00:08]} bxc6 {[%emt 0:00:13]} 13. Nxd4 {[%emt 0:00:12]} exd4 {[%emt 0:00:04]} 14. Bxd4 {[%emt 0:00:02]} (14. Qxd4 Nxe4 15. Qd3 Nc5 $15) 14... Nxe4 {[%emt 0:00:50]} 15. Bxg7 {[%emt 0:00:12]} Kxg7 {[%emt 0:00:02]} 16. Nxe4 {[%emt 0:00:31]} Rxe4 {[%emt 0:00:08]} 17. Qd3 {[%emt 0:00:16]} Bf5 {[%emt 0:01:09]} 18. Bf3 {[%emt 0:00:02]} Rf4 {[%emt 0:00:50]} (18... Re5 $6 19. Qc3 Qf6 20. Bxc6 $16) 19. Qc3+ {[%emt 0:00:51]} Qf6 {[%emt 0:00:02]} 20. Qxf6+ {[%emt 0:00:06]} Kxf6 {[%emt 0:00:01]} 21. Bxc6 {[%emt 0:00:02]} Rb8 {[%emt 0:00:15]} 22. b4 {[%emt 0:02:19]} Rxc4 {[%emt 0:00:17]} 23. Bf3 {[%emt 0:00:08]} Rc3 {[%emt 0:00:20][%cal Of5h3]} 24. Rfd1 {[%emt 0:00:08]} Ke7 {[%emt 0:00:35][%cal Of5h3]} 25. Rd5 {[%emt 0:00:26]} Bxh3 {[%emt 0:00:21][%cal Ob8d8]} 26. Ra5 $1 {[%emt 0:00:01]} Be6 {[%emt 0:00:05]} 27. Rxa7+ {[%emt 0:00:02]} Kf6 {[%emt 0:00:01]} 28. Rb1 {[%emt 0:02:40]} (28. Ra6 $14) 28... h5 {[%emt 0:00:03]} (28... d5 $11) 29. b5 $16 {[%emt 0:00:00]} d5 {[%emt 0:00:06]} 30. a4 {[%emt 0:00:00]} h4 {[%emt 0:00:02] [#] Black is on the road to losing.} (30... g5 $14) 31. b6 $1 $18 {[%emt 0:00:00] And now a5 would win.} h3 $2 {[%emt 0:00:03]} (31... g5) 32. b7 {[%emt 0:00:00]} g5 $2 {[%emt 0:00:03]} (32... Rc7 33. a5 Rd7 34. gxh3 (34. a6 Rdd8 $18) 34... Ke5) 33. Ra8 {[%emt 0:00:00]} Rxb7 {[%emt 0:00:02]} 34. Rxb7 {[%emt 0:00:00]} g4 {[%emt 0:00:00]} 35. Be2 {[%emt 0:00:00]} Rc2 {[%emt 0:00:01]} 36. Bf1 {[%emt 0:00:00]} Rc1 {[%emt 0:00:02]} 37. gxh3 {[%emt 0:00:00]} gxh3 {[%emt 0:00:03]} 38. a5 {[%emt 0:00:16]} ({Don't play} 38. Rh8 d4 39. Rb4 d3 $18) 38... d4 {[%emt 0:00:03]} 39. Rb2 $2 {[%emt 0:00:08] [#]} ({Not} 39. Rh8 Bc4 $11) (39. Rab8 $18 {is the precise move to win.} h2+ 40. Kxh2 Rxf1 41. a6) 39... h2+ {[%emt 0:00:12]} 40. Kxh2 {[%emt 0:00:01]} Rxf1 {[%emt 0:00:01][%mdl 4096] Endgame. KRR-KRB} 41. a6 {[%emt 0:00:03]} Bd5 $2 {[%emt 0:00:01]} (41... Ra1 {is more resistant.} 42. Kg3 d3) 42. Rd8 {[%emt 0:00:04] White is clearly winning.} Bf3 {[%emt 0:00:06]} 43. a7 {[%emt 0:00:07]} Rd1 {[%emt 0:00:03]} 44. a8=Q Bxa8 {[%emt 0:00:01]} 45. Rxa8 {[%emt 0:00:04]} d3 {[%emt 0:00:00]} 46. Kg3 {[%emt 0:00:07] Weighted Error Value: White=0.32/Black=0.64.  Missed win:     	White=1     	---        Mistake:       	White=1     	Black=6      Inaccurate:     	---       	Black=5      OK:         	White=13    	Black=12     Best:        	White=4     	Black=2      Strong:       	White=1     	---} 1-0

[Event "Polish University-ch Open 2024"]
[Site "Lublin"]
[Date "2024.02.23"]
[Round "4.16"]
[White "Musial, Tomasz"]
[Black "Pultorak, Jan"]
[Result "1/2-1/2"]
[ECO "B01"]
[WhiteElo "2171"]
[BlackElo "2303"]
[Annotator "TA"]
[PlyCount "130"]
[EventDate "2024.02.22"]
[EventType "swiss"]
[EventCountry "POL"]
[SourceTitle "playchess.com"]
[Source "ChessBase"]
[SourceQuality "1"]
[TimeControl "600+3"]

{[%evp 9,130,35,39,39,45,50,54,52,56,22,22,18,22,13,15,0,10,-6,4,0,4,0,0,7,2,7,7,4,5,5,0,-16,-15,-7,-11,-118,-121,-127,-122,-135,-134,-127,-114,-122,-111,-111,-117,-115,-100,-139,-127,-141,-138,-171,-156,-167,-119,-102,-104,-135,-98,-93,-85,-80,-81,-73,-74,-78,-71,-104,-94,-96,0,-47,16,0,0,-92,-66,-60,-68,-99,-32,-47,-31,-103,-109,-195,-197,-438,-436,-446,-270,-277,-30,-21,-8,-9,-8,-8,-8,-8,-8,-8,-8,-8,-8,-8,-8,-8,-8,-8,-8,-8,-8,-8,0,0,0,0,0,0,0]} 1. e4 {[%emt 0:00:01]} d5 {[%emt 0:00:01]} 2. exd5 {[%emt 0:00:02]} Qxd5 {[%emt 0:00:02]} 3. Nc3 {[%emt 0:00:02]} Qd6 {[%emt 0:00:01]} 4. d4 {[%emt 0:00:04]} c6 {[%emt 0:00:01]} 5. Nf3 {[%emt 0:00:06]} Nf6 {[%emt 0:00:02]} 6. g3 {[%emt 0:00:12]} Bg4 {[%emt 0:00:08]} 7. Bg2 {[%emt 0:00:25]} e6 {[%emt 0:00:04]} 8. O-O {[%emt 0:00:16] Weiß steht etwas besser.} Qc7 {[%emt 0:00:14]} 9. Bf4 {[%emt 0:01:03]} Bd6 {[%emt 0:00:03]} 10. Bxd6 {[%emt 0:00:52]} Qxd6 {[%emt 0:00:01]} 11. Qd2 {[%emt 0:00:16]} Nbd7 {[%emt 0:00:03]} 12. Ne2 {[%emt 0:00:52]} O-O {[%emt 0:00:45]} 13. Qf4 {[%emt 0:00:08]} Qxf4 {[%emt 0:00:11]} 14. Nxf4 {[%emt 0:00:03]} Nd5 {[%emt 0:00:14]} 15. Nd3 {[%emt 0:00:02]} Bf5 {[%emt 0:00:18]} 16. Rad1 {[%emt 0:00:25]} h6 {[%emt 0:00:07]} 17. c3 {[%emt 0:00:20]} a5 {[%emt 0:00:43]} 18. Nfe5 {[%emt 0:00:48]} Nxe5 {[%emt 0:00:17]} 19. Nxe5 {[%emt 0:00:06]} Rfd8 {[%emt 0:00:11]} 20. Rd2 {[%emt 0:00:38]} a4 {[%emt 0:00:13]} 21. Rc1 {[%emt 0:00:02]} Nb6 {[%emt 0:00:14][%cal Bd5b6,Bb6c4,Bc4b2][%mdl 32]} 22. Nf3 {[%emt 0:00:48]} (22. Re2 $11 {bleibt in der Remisbreite.}) 22... Nc4 $17 {[%emt 0:00:14]} 23. Re2 {[%emt 0:00:03]} Bd3 {[%emt 0:00:07]} 24. Ree1 {[%emt 0:00:16]} Nxb2 {[%emt 0:00:03]} 25. Ne5 {[%emt 0:00:32]} Bh7 {[%emt 0:00:04]} 26. Bf1 {[%emt 0:00:09]} a3 {[%emt 0:00:38]} 27. Re3 {[%emt 0:00:42]} Kf8 {[%emt 0:06:25]} 28. Rce1 {[%emt 0:00:14]} Rac8 {[%emt 0:00:00]} 29. Bg2 {[%emt 0:00:10]} Ke7 {[%emt 0:00:00]} 30. h4 {[%emt 0:00:06]} Rd6 {[%emt 0:00:00]} 31. h5 {[%emt 0:00:27]} b5 {[%emt 0:00:00]} 32. Bh3 {[%emt 0:00:17]} Rb8 {[%emt 0:00:00]} (32... Nc4 $19 33. Nxc4 bxc4) 33. Bg2 {[%emt 0:00:14]} Rb6 {[%emt 0:00:00]} 34. f4 {[%emt 0:00:12]} f6 {[%emt 0:00:00]} 35. Ng6+ {[%emt 0:00:10]} Bxg6 {[%emt 0:00:00]} 36. hxg6 {[%emt 0:00:02]} Nc4 {[%emt 0:00:00]} 37. R3e2 {[%emt 0:00:03]} f5 {[%emt 0:00:00]} 38. g4 {[%emt 0:00:05] [#]} Kf6 {[%emt 0:00:00]} 39. gxf5 {[%emt 0:00:02]} exf5 {[%emt 0:00:00][%cal Ob5b4]} 40. Re7 {[%emt 0:00:11]} Nd2 {[%emt 0:00:00]} (40... Kxg6 $17 {Und ...b4 würde nun gewinnen.} 41. Rc7 b4 42. cxb4 Rxb4 43. Bxc6 Kh7 (43... Rxd4 44. Re6+ Kh7 45. Ree7 $15)) 41. Rc7 {[%emt 0:00:05]} (41. Rf7+ $1 $11 {ist eher angebracht.} Kxg6 42. Ree7) 41... Ne4 {[%emt 0:00:00]} (41... b4 $15 42. Rf7+ Kxg6) 42. Bxe4 {[%emt 0:00:03]} fxe4 {[%emt 0:00:00]} 43. Rxe4 {[%emt 0:00:01]} (43. Kf2 $11) 43... Kxg6 $11 {[%emt 0:00:00][%mdl 4096] Endspiel. KRR-KRR} 44. Ree7 {[%emt 0:00:02]} Kf5 {[%emt 0:00:01]} 45. Rxg7 {[%emt 0:00:03] [#]} Kxf4 {[%emt 0:00:07]} (45... b4 $1 $17 {[%cal Rb4c3]} 46. cxb4 Rxb4 (46... Kxf4 47. Rcf7+ Ke3 48. Rg3+ Kxd4 49. Rf4+ Ke5 50. Rh4 $11)) 46. Rcf7+ {[%emt 0:00:02]} Ke4 $1 {[%emt 0:00:03]} 47. Rg4+ {[%emt 0:00:04]} ({Vorzuziehen ist} 47. Rg3 $15) 47... Kd3 {[%emt 0:00:06]} 48. Rf3+ {[%emt 0:00:18]} (48. Rg3+ $17 {ist eine bessere Verteidigung.} Kc4 49. Ra7) 48... Kc4 $19 {[%emt 0:00:01]} 49. Rf5 $2 {[%emt 0:00:08]} (49. Rh4) 49... Rd5 {[%emt 0:00:05]} ({Nicht} 49... Kxc3 50. Rf3+ Kc4 51. Rxa3 $19) 50. Rf3 {[%emt 0:00:07]} Rb8 {[%emt 0:00:01] Zielt auf ...Rg5 ab.} 51. Kf2 {[%emt 0:00:02]} b4 $2 {[%emt 0:00:34]} (51... Rh5 $19 {Und jetzt ...Rh2+ wäre schön.} 52. Kf1 Rh2 53. d5+ Kxd5 54. Rf5+ Ke6) 52. cxb4 $11 {[%emt 0:00:02]} Rxb4 {[%emt 0:00:01] ...Rb2+ wäre nun fies. Die Stellung ist ausgeglichen.} (52... Rxd4 53. Rxd4+ Kxd4 54. Rxa3) 53. Rxa3 {[%emt 0:00:02]} Rxd4 {[%emt 0:00:04]} 54. Rxd4+ {[%emt 0:00:10]} Kxd4 {[%emt 0:00:02] KR-KR} 55. Rh3 {[%emt 0:00:02]} Rb2+ {[%emt 0:00:01]} 56. Ke1 $1 {[%emt 0:00:01]} Rxa2 {[%emt 0:00:03] Weiss muss nun ...c5 beachten.} 57. Kd1 {[%emt 0:00:07]} c5 {[%emt 0:00:04] Droht stark ...Rg2.} 58. Rxh6 {[%emt 0:00:02]} c4 {[%emt 0:00:10]} (58... Kc3 $5 59. Rh3+ $8 Kb4 $11) 59. Rh3 {[%emt 0:00:02]} Kc5 {[%emt 0:00:02]} 60. Kc1 {[%emt 0:00:01]} Kb4 {[%emt 0:00:01]} 61. Rg3 {[%emt 0:00:01]} Rh2 {[%emt 0:00:03]} 62. Rf3 {[%emt 0:00:01]} c3 {[%emt 0:00:11] ( -> ...Kb3)} 63. Rf8 {[%emt 0:00:01]} Rh1+ {[%emt 0:00:03]} 64. Kc2 {[%emt 0:00:01]} Rh2+ {[%emt 0:00:01]} 65. Kc1 {[%emt 0:00:00]} Rh1+ {[%emt 0:00:03] Gewichteter Fehlerwert: Weiß=0.20 (präzise) /Schwarz=0.21 (präzise) .  Gewinn verpasst:   	---       	Schwarz=1     Fehler:       	Weiß=6     	Schwarz=4     Ungenau:       	Weiß=3     	Schwarz=1     OK:         	Weiß=16    	Schwarz=18    Bester:       	Weiß=5     	Schwarz=7     Stark:        	Weiß=1     	Schwarz=1} 1/2-1/2

[Event "Polish University-ch Open 2024"]
[Site "Lublin"]
[Date "2024.02.23"]
[Round "4.17"]
[White "Jakubowski, Jaroslaw"]
[Black "Snihur, Piotr"]
[Result "0-1"]
[ECO "B93"]
[WhiteElo "2090"]
[BlackElo "2278"]
[Annotator "RC"]
[PlyCount "121"]
[EventDate "2024.02.22"]
[EventType "swiss"]
[EventCountry "POL"]
[SourceTitle "playchess.com"]
[Source "ChessBase"]
[SourceQuality "1"]
[TimeControl "600+3"]

1. e4 {[%emt 0:00:01]} c5 {[%emt 0:00:10]} 2. Nf3 {[%emt 0:00:02]} d6 {[%emt 0:00:01]} 3. d4 {[%emt 0:00:01]} cxd4 {[%emt 0:00:01]} 4. Nxd4 {[%emt 0:00:02]} Nf6 {[%emt 0:00:01]} 5. Nc3 {[%emt 0:00:01]} a6 {[%emt 0:00:00]} 6. f4 {[%emt 0:00:08]} e5 {[%emt 0:00:40]} 7. Nf3 {[%emt 0:00:02]} Nc6 {[%emt 0:00:05]} 8. Bd3 {[%emt 0:00:13]} Be7 {[%emt 0:00:18]} 9. O-O {[%emt 0:00:03]} O-O {[%emt 0:00:03]} 10. Kh1 {[%emt 0:00:03]} b5 {[%emt 0:00:31]} 11. a3 {[%emt 0:00:03]} Qc7 {[%emt 0:00:20]} 12. Qe1 {[%emt 0:00:02]} Re8 {[%emt 0:01:02]} 13. Nd5 {[%emt 0:01:25]} Qd8 {[%emt 0:01:38]} 14. Nxe7+ {[%emt 0:00:15]} Qxe7 {[%emt 0:00:39]} 15. fxe5 {[%emt 0:00:44]} dxe5 {[%emt 0:00:01]} 16. Bg5 {[%emt 0:00:22]} h6 {[%emt 0:01:03]} 17. Bh4 {[%emt 0:00:19]} Qe6 {[%emt 0:00:05]} 18. Rd1 {[%emt 0:00:34]} Bb7 {[%emt 0:00:14]} 19. c3 {[%emt 0:00:54]} Na5 {[%emt 0:00:45]} 20. Bg3 {[%emt 0:00:35]} Nd7 {[%emt 0:01:06]} 21. Nh4 {[%emt 0:00:35]} Rad8 {[%emt 0:00:31]} 22. Qe3 {[%emt 0:01:47]} Nc4 {[%emt 0:00:20]} 23. Bxc4 {[%emt 0:00:09]} Qxc4 {[%emt 0:00:01]} 24. Nf5 {[%emt 0:00:25]} Nc5 {[%emt 0:00:32]} 25. Nxh6+ {[%emt 0:01:21]} gxh6 {[%emt 0:00:09]} 26. Qxh6 {[%emt 0:00:03]} Bxe4 {[%emt 0:00:52]} 27. Bxe5 {[%emt 0:00:38]} Bxg2+ {[%emt 0:00:08]} 28. Kxg2 {[%emt 0:00:16]} Qe4+ {[%emt 0:00:01]} 29. Kg1 {[%emt 0:00:13]} Qxe5 {[%emt 0:00:06]} 30. Rde1 {[%emt 0:00:11]} Qg7+ {[%emt 0:00:02]} 31. Qxg7+ {[%emt 0:00:03]} Kxg7 {[%emt 0:00:11]} 32. Rxe8 {[%emt 0:00:04]} Rxe8 {[%emt 0:00:00]} 33. Rf5 {[%emt 0:00:02]} Nd3 {[%emt 0:00:00]} 34. b4 {[%emt 0:00:02]} Re2 {[%emt 0:00:01]} 35. Rd5 {[%emt 0:00:03]} Ne5 {[%emt 0:00:05]} 36. Rd6 {[%emt 0:00:03]} Nc4 {[%emt 0:00:04]} 37. Rxa6 {[%emt 0:00:01]} Re3 {[%emt 0:00:01]} 38. a4 {[%emt 0:00:01]} bxa4 {[%emt 0:00:04]} 39. Rxa4 {[%emt 0:00:02]} Rxc3 {[%emt 0:00:01]} 40. b5 {[%emt 0:00:00]} Nd6 {[%emt 0:00:03]} 41. b6 {[%emt 0:00:03]} Rb3 {[%emt 0:00:01]} 42. Ra6 {[%emt 0:00:01]} Nc4 {[%emt 0:00:02]} 43. b7 {[%emt 0:00:01]} Rxb7 {[%emt 0:00:01]} 44. Kg2 {[%emt 0:00:02]} Rb3 {[%emt 0:00:01]} 45. Rc6 {[%emt 0:00:03]} Ne5 {[%emt 0:00:02]} 46. Ra6 {[%emt 0:00:01]} f6 {[%emt 0:00:01]} 47. h3 {[%emt 0:00:11]} Kg6 {[%emt 0:00:01]} 48. Ra4 {[%emt 0:00:02]} Kg5 {[%emt 0:00:07]} 49. Kh2 {[%emt 0:00:02]} f5 {[%emt 0:00:06]} 50. Ra5 {[%emt 0:00:09]} Ng6 {[%emt 0:00:03]} 51. Ra8 {[%emt 0:00:04]} Kh4 {[%emt 0:00:06]} 52. Ra4+ {[%emt 0:00:02]} f4 {[%emt 0:00:02]} 53. Ra6 {[%emt 0:00:05]} Rxh3+ {[%emt 0:00:06]} 54. Kg2 {[%emt 0:00:01]} Rg3+ {[%emt 0:00:02]} 55. Kf2 {[%emt 0:00:01]} Ne5 {[%emt 0:00:03]} 56. Ra5 {[%emt 0:00:05]} Nd3+ {[%emt 0:00:02]} 57. Ke2 {[%emt 0:00:02]} Re3+ {[%emt 0:00:03]} 58. Kd2 {[%emt 0:00:02]} Ne5 {[%emt 0:00:07]} 59. Ra8 {[%emt 0:00:03]} Kg3 {[%emt 0:00:01]} 60. Rg8+ {[%emt 0:00:01]} Kf3 {[%emt 0:00:01]} 61. Rg7 {[%emt 0:00:03]} 0-1

[Event "Polish University-ch Open 2024"]
[Site "Lublin"]
[Date "2024.02.23"]
[Round "4.18"]
[White "Bartkiewicz, Pawel"]
[Black "Brzezinski, Mateusz"]
[Result "0-1"]
[ECO "B33"]
[WhiteElo "1910"]
[BlackElo "2176"]
[Annotator "RC"]
[PlyCount "64"]
[EventDate "2024.02.22"]
[EventType "swiss"]
[EventCountry "POL"]
[SourceTitle "playchess.com"]
[Source "ChessBase"]
[SourceQuality "1"]
[TimeControl "600+3"]

1. e4 {[%emt 0:00:02]} c5 {[%emt 0:00:00]} 2. Nf3 {[%emt 0:00:01]} Nc6 {[%emt 0:00:01]} 3. d4 {[%emt 0:00:01]} cxd4 {[%emt 0:00:01]} 4. Nxd4 {[%emt 0:00:01]} Nf6 {[%emt 0:00:01]} 5. Nc3 {[%emt 0:00:01]} e5 {[%emt 0:00:01]} 6. Ndb5 {[%emt 0:00:01]} d6 {[%emt 0:00:01]} 7. Bg5 {[%emt 0:00:04]} a6 {[%emt 0:00:01]} 8. Na3 {[%emt 0:00:02]} b5 {[%emt 0:00:01]} 9. Nd5 {[%emt 0:00:02]} Be7 {[%emt 0:00:01]} 10. Bxf6 {[%emt 0:00:01]} Bxf6 {[%emt 0:00:01]} 11. c3 {[%emt 0:00:01]} Ne7 {[%emt 0:00:01]} 12. Nxe7 {[%emt 0:00:32]} Qxe7 {[%emt 0:00:12]} 13. Nc2 {[%emt 0:00:01]} Bb7 {[%emt 0:00:03]} 14. Bd3 {[%emt 0:00:02]} Bg5 {[%emt 0:00:15]} 15. a4 {[%emt 0:00:08]} bxa4 {[%emt 0:00:53]} 16. Rxa4 {[%emt 0:00:01]} O-O {[%emt 0:00:03]} 17. O-O {[%emt 0:00:03]} g6 {[%emt 0:00:25]} 18. Qe2 {[%emt 0:01:05]} a5 {[%emt 0:01:31]} 19. Ne3 {[%emt 0:01:16]} Bc6 {[%emt 0:00:36]} 20. Raa1 {[%emt 0:01:11]} Bxe3 {[%emt 0:06:55]} 21. Qxe3 {[%emt 0:00:10]} Qb7 {[%emt 0:00:00]} 22. Rfb1 {[%emt 0:00:34]} f5 {[%emt 0:00:00]} 23. exf5 {[%emt 0:00:55]} gxf5 {[%emt 0:00:00]} 24. f3 {[%emt 0:00:54]} Kh8 {[%emt 0:00:00]} 25. b4 {[%emt 0:00:42]} axb4 {[%emt 0:00:00]} 26. Rxa8 {[%emt 0:00:06]} Rxa8 {[%emt 0:00:00]} 27. Bxf5 {[%emt 0:00:41]} b3 {[%emt 0:00:00]} 28. Qh6 {[%emt 0:01:03]} Qa7+ {[%emt 0:00:00]} 29. Kh1 {[%emt 0:00:10]} Qe7 {[%emt 0:00:00]} 30. Rxb3 {[%emt 0:00:40]} e4 {[%emt 0:00:00]} 31. h3 {[%emt 0:00:58]} exf3 {[%emt 0:00:00]} 32. gxf3 {[%emt 0:00:05]} Qe1+ {[%emt 0:00:00]} 0-1

[Event "Polish University-ch Open 2024"]
[Site "Lublin"]
[Date "2024.02.24"]
[Round "5.1"]
[White "Kosakowski, Jakub"]
[Black "Walter, Szymon"]
[Result "1-0"]
[ECO "B45"]
[WhiteElo "2482"]
[BlackElo "2305"]
[Annotator "RC"]
[PlyCount "55"]
[EventDate "2024.02.22"]
[EventType "swiss"]
[EventCountry "POL"]
[SourceTitle "playchess.com"]
[Source "ChessBase"]
[SourceQuality "1"]
[TimeControl "600+3"]

1. e4 {[%emt 0:00:05]} c5 {[%emt 0:00:02]} 2. Nf3 {[%emt 0:00:08]} e6 {[%emt 0:00:04]} 3. d4 {[%emt 0:00:04]} cxd4 {[%emt 0:00:03]} 4. Nxd4 {[%emt 0:00:03]} Nc6 {[%emt 0:00:04]} 5. Nc3 {[%emt 0:00:02]} Nf6 {[%emt 0:00:03]} 6. Nxc6 {[%emt 0:00:33]} bxc6 {[%emt 0:00:02]} 7. e5 {[%emt 0:00:02]} Nd5 {[%emt 0:00:03]} 8. Ne4 {[%emt 0:00:02]} Qc7 {[%emt 0:00:51]} 9. f4 {[%emt 0:00:04]} Rb8 {[%emt 0:00:23]} 10. c4 {[%emt 0:00:28]} Bb4+ {[%emt 0:00:24]} 11. Ke2 {[%emt 0:00:10]} O-O {[%emt 0:00:08]} 12. a3 {[%emt 0:00:04]} Be7 {[%emt 0:00:06]} 13. cxd5 {[%emt 0:00:14]} cxd5 {[%emt 0:00:03]} 14. Nd6 {[%emt 0:00:25]} f6 {[%emt 0:01:34]} 15. Nxc8 {[%emt 0:00:04]} Rfxc8 {[%emt 0:00:37]} 16. exf6 {[%emt 0:00:06]} Bxf6 {[%emt 0:00:03]} 17. Rb1 {[%emt 0:00:02]} Qc4+ {[%emt 0:02:20]} 18. Kf2 {[%emt 0:00:21]} Qc5+ {[%emt 0:02:33]} 19. Ke1 {[%emt 0:03:25]} Bc3+ {[%emt 0:00:58]} 20. Ke2 {[%emt 0:00:05]} Qc4+ {[%emt 0:00:20]} 21. Kf2 {[%emt 0:00:02]} Bd4+ {[%emt 0:00:01]} 22. Kg3 {[%emt 0:00:01]} Qc5 {[%emt 0:00:05]} 23. Bd3 {[%emt 0:00:45]} Rf8 {[%emt 0:00:04]} 24. b4 {[%emt 0:00:43]} Qb6 {[%emt 0:00:01]} 25. h3 {[%emt 0:00:26]} e5 {[%emt 0:00:02]} 26. Kh2 {[%emt 0:00:25]} Be3 {[%emt 0:00:06]} 27. Qh5 {[%emt 0:00:35]} g6 {[%emt 0:00:19]} 28. Qxe5 {[%emt 0:00:03]} 1-0

[Event "Polish University-ch Open 2024"]
[Site "Lublin"]
[Date "2024.02.24"]
[Round "5.2"]
[White "Koziorowicz, Michal"]
[Black "Janik, Igor"]
[Result "0-1"]
[ECO "A00"]
[WhiteElo "2324"]
[BlackElo "2499"]
[Annotator "TA"]
[PlyCount "109"]
[EventDate "2024.02.22"]
[EventType "swiss"]
[EventCountry "POL"]
[SourceTitle "playchess.com"]
[Source "ChessBase"]
[SourceQuality "1"]
[TimeControl "600+3"]

{[%evp 38,109,67,34,56,-20,-10,-20,18,0,62,72,106,65,64,65,112,122,151,150,227,234,214,183,176,192,175,189,260,246,246,217,354,302,310,228,450,283,270,296,281,288,382,184,179,-29,-43,-52,-33,-287,-295,-451,-438,-421,-367,-559,-589,-510,-223,-206,-200,-873,-866,-942,-919,-29977,-29980,-12568,-29952,-5797,-5297,-1262,-1251,-1251]} 1. d3 {[%emt 0:00:01]} d6 {[%emt 0:00:00]} 2. Qd2 {[%emt 0:00:01]} ({Predecessor:} 2. g3 g6 3. Bg2 Bg7 4. f4 e5 5. Nc3 Nc6 6. Nf3 Nge7 7. O-O O-O 8. e4 f5 9. fxe5 dxe5 10. Bg5 f4 11. gxf4 exf4 12. Qd2 Qd6 13. e5 Nxe5 14. Bxf4 Nf5 15. Kh1 Nxf3 16. Bxf3 {0-1 Makarian,R (2499)-Chigaev,M (2641) Titled Tuesday intern op 09th Aug Early blitz 2022 (8)}) 2... Qd7 {[%emt 0:00:01]} 3. Qe3 {[%emt 0:00:01]} Qe6 {[%emt 0:00:00]} 4. Qxe6 {[%emt 0:00:01]} Bxe6 {[%emt 0:00:01]} 5. Be3 {[%emt 0:00:01]} Bd7 {[%emt 0:00:00]} 6. Bc1 {[%emt 0:00:01] A00: Irregular Openings.} Bc8 {[%emt 0:00:01]} 7. g3 {[%emt 0:00:03]} c5 {[%emt 0:00:10]} 8. Bg2 {[%emt 0:00:02]} Nc6 {[%emt 0:00:00]} 9. c3 {[%emt 0:00:03]} g6 {[%emt 0:00:08]} 10. e4 {[%emt 0:00:02]} Bg7 {[%emt 0:00:02]} 11. Be3 {[%emt 0:00:08]} e6 {[%emt 0:00:05]} 12. f4 {[%emt 0:00:03]} Nge7 {[%emt 0:00:01]} 13. Nf3 {[%emt 0:00:03]} b6 {[%emt 0:00:02]} 14. Nbd2 {[%emt 0:00:02]} Bb7 {[%emt 0:00:01]} 15. a4 {[%emt 0:00:04]} Kd7 {[%emt 0:00:14]} 16. Kf2 {[%emt 0:00:25]} d5 {[%emt 0:00:07]} 17. Ke2 {[%emt 0:00:18]} Rhe8 {[%emt 0:00:14]} 18. Rhd1 {[%emt 0:00:07]} f5 {[%emt 0:00:17]} 19. e5 {[%emt 0:00:05]} Ba6 {[%emt 0:00:11]} 20. Bf1 {[%emt 0:00:09]} Rec8 {[%emt 0:00:14]} 21. Ng5 {[%emt 0:00:12]} (21. Rdc1 $14) 21... h6 $11 {[%emt 0:00:03]} 22. Nf7 {[%emt 0:00:01]} Rf8 {[%emt 0:00:04]} 23. Nd6 {[%emt 0:00:02]} Nc8 {[%emt 0:09:16]} (23... g5 $1 $11) 24. Nb5 $14 {[%emt 0:00:10]} Bb7 {[%emt 0:00:00]} 25. Rab1 {[%emt 0:00:27]} a6 {[%emt 0:00:00]} 26. Na3 {[%emt 0:00:01]} N8a7 {[%emt 0:00:00]} (26... Rg8 $14) 27. b4 $16 {[%emt 0:00:08]} d4 {[%emt 0:00:00]} 28. cxd4 {[%emt 0:00:08]} cxb4 {[%emt 0:00:00]} (28... cxd4 $16 {might work better.} 29. Bf2 Rfb8) 29. Nac4 $18 {[%emt 0:00:05]} Nc8 {[%emt 0:00:00]} 30. d5 {[%emt 0:00:16]} exd5 {[%emt 0:00:00]} 31. Nxb6+ {[%emt 0:00:02]} Nxb6 {[%emt 0:00:00]} 32. Bxb6 {[%emt 0:00:02]} a5 {[%emt 0:00:00]} (32... Rfc8 $142 33. Rdc1 g5) 33. Nb3 $18 {[%emt 0:00:03]} Rfb8 {[%emt 0:00:00]} 34. Bg2 {[%emt 0:00:16]} Ne7 {[%emt 0:00:33]} (34... Bf8 $142 35. Rdc1 (35. Bxd5 Nd4+ 36. Bxd4 Bxd5 $14) 35... Ke8) 35. Rdc1 {[%emt 0:00:37]} (35. Nxa5 Bc8 $18) 35... Bc6 {[%emt 0:00:00]} 36. Bc5 {[%emt 0:00:52]} Bf8 $2 {[%emt 0:00:00]} (36... Rc8 37. Ra1 Bf8) 37. Bd6 {[%emt 0:00:08]} Rc8 {[%emt 0:00:09]} 38. Nc5+ {[%emt 0:00:02]} Ke8 {[%emt 0:00:00]} 39. Ne6 {[%emt 0:00:02]} Kf7 {[%emt 0:00:00]} 40. Nxf8 {[%emt 0:00:38]} (40. Nc7 $142 Rxc7 41. Bxc7) 40... Kxf8 $18 {[%emt 0:00:00] [#]} 41. Rxc6 $2 {[%emt 0:00:02]} (41. Kd2 $1 $18 {[%mdl 512]}) 41... Rxc6 $11 {[%emt 0:00:00]} 42. Bxd5 {[%emt 0:00:04]} Rc2+ {[%emt 0:00:00]} 43. Kd1 $2 {[%emt 0:00:49][%mdl 8192]} (43. Ke3 $15 Rac8 44. Be6) 43... Rac8 $19 {[%emt 0:00:00]} (43... Rxh2 $2 {too greedy.} 44. Bxa8 Rf2 45. Rc1 Rf1+ 46. Kd2 Rxc1 47. Kxc1 $18) 44. Bb3 {[%emt 0:00:02]} (44. Bc4 {was called for.} Rxh2 45. Rb3) 44... Rxh2 $19 {[%emt 0:00:00]} 45. Bc4 {[%emt 0:00:12]} Ke8 {[%emt 0:00:00]} 46. Bb5+ {[%emt 0:00:02]} (46. e6 {keeps fighting.}) 46... Kd8 $19 {[%emt 0:00:00]} 47. Bc4 {[%emt 0:00:17]} Nc6 {[%emt 0:00:00]} (47... Rg2 $142 {[%cal Oe7d5] Hoping for ...Nd5!} 48. Kc1 Nd5 (48... Rxg3 $2 49. Kb2 $19)) 48. Bc5 $19 {[%emt 0:00:01] [#]} Kc7 $1 {[%emt 0:00:00]} 49. d4 $2 {[%emt 0:00:11] [#]} (49. Rc1 Rd8 50. Rc2 Rxc2 51. Kxc2) 49... Nxd4 $1 $19 {[%emt 0:00:00]} ({Inferior is} 49... Rh1+ 50. Kc2 Rh2+ (50... Rxb1 51. Kxb1 Kb7 52. Be6 $11) 51. Kb3 $11) 50. Bxd4 {[%emt 0:00:27]} Rd8 {[%emt 0:00:00]} 51. Bf7 {[%emt 0:00:14]} Rxd4+ {[%emt 0:00:00]} 52. Kc1 {[%emt 0:00:00]} Rdd2 {[%emt 0:00:00]} 53. Rb3 {[%emt 0:00:01]} Rdg2 {[%emt 0:00:00]} 54. Rd3 {[%emt 0:00:03]} Rh1+ {[%emt 0:00:00]} 55. Rd1 {[%emt 0:00:00]} 0-1